[Event "ROU-ch Women 2019"]
[Site "Olanesti"]
[Date "2019.03.08"]
[Round "7.18"]
[White "Cosma, Elena-Luminita"]
[Black "Sandu, Mihaela"]
[Result "1/2-1/2"]
[ECO "A05"]
[WhiteElo "2324"]
[BlackElo "2294"]
[Annotator "RC"]
[PlyCount "108"]
[EventDate "2019.03.02"]
[EventType "swiss"]
[EventCountry "ROU"]
[SourceTitle "playchess.com"]
[Source "ChessBase"]
[SourceQuality "1"]
[TimeControl "40/5400+30:1800+30"]

1. Nf3 {[%emt 0:00:00]} Nf6 {[%emt 0:00:00]} 2. g3 {[%emt 0:00:00]} d5 {[%emt 0:00:00]} 3. Bg2 {[%emt 0:00:00]} c6 {[%emt 0:00:32]} 4. O-O {[%emt 0:00:40]} Bf5 {[%emt 0:00:23]} 5. d4 {[%emt 0:02:30]} h6 {[%emt 0:01:17]} 6. c4 {[%emt 0:00:46]} e6 {[%emt 0:00:04]} 7. Nc3 {[%emt 0:00:12]} Be7 {[%emt 0:00:09]} 8. b3 {[%emt 0:02:48]} O-O {[%emt 0:00:12]} 9. Bb2 {[%emt 0:00:31]} Nbd7 {[%emt 0:00:17]} 10. e3 {[%emt 0:00:15]} Ne4 {[%emt 0:03:38]} 11. Qe2 {[%emt 0:01:27]} Qa5 {[%emt 0:10:23]} 12. Rfc1 {[%emt 0:00:00]} Rfd8 {[%emt 0:11:25]} 13. h3 {[%emt 0:10:03]} Rac8 {[%emt 0:02:44]} 14. Ne1 {[%emt 0:09:56]} Bb4 {[%emt 0:05:39]} 15. Nxe4 {[%emt 0:02:40]} dxe4 {[%emt 0:00:51]} 16. a3 {[%emt 0:06:57]} Be7 {[%emt 0:05:32]} 17. b4 {[%emt 0:06:16]} Qc7 {[%emt 0:01:56]} 18. Rd1 {[%emt 0:06:52]} Nf6 {[%emt 0:02:47]} 19. Rac1 {[%emt 0:00:53]} a5 {[%emt 0:09:28]} 20. Nc2 {[%emt 0:01:23]} axb4 {[%emt 0:05:02]} 21. axb4 {[%emt 0:07:08]} Ra8 {[%emt 0:00:19]} 22. Ra1 {[%emt 0:00:40]} h5 {[%emt 0:00:57]} 23. Bc3 {[%emt 0:02:04]} b6 {[%emt 0:01:34]} 24. Rdc1 {[%emt 0:11:06]} Bg6 {[%emt 0:12:14]} 25. Qf1 {[%emt 0:06:12]} Rxa1 {[%emt 0:06:01]} 26. Rxa1 {[%emt 0:00:05]} h4 {[%emt 0:00:04]} 27. g4 {[%emt 0:02:49]} Nh7 {[%emt 0:00:05]} 28. Ne1 {[%emt 0:13:01]} Ng5 {[%emt 0:04:58]} 29. Qe2 {[%emt 0:00:39]} Bf6 {[%emt 0:02:22]} 30. Qa2 {[%emt 0:01:11]} e5 {[%emt 0:01:06]} 31. dxe5 {[%emt 0:02:02]} Bxe5 {[%emt 0:00:04]} 32. Qb2 {[%emt 0:00:10]} Bxc3 {[%emt 0:03:40]} 33. Qxc3 {[%emt 0:00:05]} c5 {[%emt 0:00:15]} 34. bxc5 {[%emt 0:01:22]} bxc5 {[%emt 0:00:03]} 35. Ra5 {[%emt 0:02:34]} f5 {[%emt 0:05:00]} 36. Ra6 {[%emt 0:00:14]} Kh7 {[%emt 0:03:07]} 37. Qa1 {[%emt 0:00:32]} Rd7 {[%emt 0:00:19]} 38. Qa4 {[%emt 0:01:27]} fxg4 {[%emt 0:01:31]} 39. hxg4 {[%emt 0:00:15]} h3 {[%emt 0:01:35]} 40. Bh1 {[%emt 0:00:00]} Rd6 {[%emt 0:00:00]} 41. Rxd6 {[%emt 0:08:52]} Qxd6 {[%emt 0:01:37]} 42. Qc2 {[%emt 0:00:16]} Nf3+ {[%emt 0:02:54]} 43. Bxf3 {[%emt 0:06:18]} exf3 {[%emt 0:00:07]} 44. Qc3 {[%emt 0:00:35]} Be4 {[%emt 0:08:00]} 45. Kh1 {[%emt 0:01:59]} Kg6 {[%emt 0:16:11]} 46. Qa5 {[%emt 0:00:26]} Kg5 {[%emt 0:02:14]} 47. Qa7 {[%emt 0:06:54]} g6 {[%emt 0:00:17]} 48. Qg7 {[%emt 0:00:04]} Kxg4 {[%emt 0:00:44]} 49. Qh6 {[%emt 0:00:25]} Bf5 {[%emt 0:01:09]} 50. Kg1 {[%emt 0:01:09]} Qe5 {[%emt 0:01:08]} 51. Qh4+ {[%emt 0:00:29]} Kxh4 {[%emt 0:00:23]} 52. Nxf3+ {[%emt 0:00:03]} Kh5 {[%emt 0:00:21]} 53. Nxe5 {[%emt 0:00:03]} g5 {[%emt 0:00:54]} 54. Kh1 h2 1/2-1/2

[Event "ROU-ch Women 2019"]
[Site "Olanesti"]
[Date "2019.03.08"]
[Round "7.19"]
[White "Ionescu, Irina"]
[Black "Aciu, Malina-Andreea"]
[Result "0-1"]
[ECO "D00"]
[WhiteElo "2270"]
[BlackElo "1980"]
[Annotator "NA RC"]
[PlyCount "110"]
[EventDate "2019.03.02"]
[EventType "swiss"]
[EventCountry "ROU"]
[SourceTitle "playchess.com"]
[Source "ChessBase"]
[SourceQuality "1"]
[TimeControl "40/5400+30:1800+30"]

{[%evp 22,110,7,32767,32767,32767,32767,16,32767,20,30,16,28,16,22,0,5,-26,-23,-34,-29,-35,32767,-39,-40,-33,-35,32767,32767,-75,-47,-72,-7,-60,-57,-106,-89,-114,-158,32767,-206,-227,32767,-166,-181,-179,-229,-185,-151,-936,-636,-3023,-6544,-29985,-29984,-29991,-445,32767,32767,32767,32767,32767,32767,32767,32767,32767,32767,32767,32767,32767,32767,32767,32767,32767,32767,-257,-258,-268,-420,32767,32767,32767,32767,32767,-946,32767,32767,32767,32767,-29956,-29966]} 1. d4 {[%emt 0:00:00]} d5 {[%emt 0:00:00]} 2. Bf4 {[%emt 0:00:57]} Nf6 {[%emt 0:00:01]} 3. e3 {[%emt 0:00:26]} e6 {[%emt 0:00:07]} 4. Nd2 {[%emt 0:01:44]} c5 {[%emt 0:01:54]} 5. c3 {[%emt 0:00:15]} Bd6 {[%emt 0:00:19]} 6. Bxd6 {[%emt 0:04:57] D00: 1 d4 d5: Unusual lines} (6. Bb5+ Nc6 7. Bg3 Bxg3 8. hxg3 Qd6 9. g4 e5 10. dxe5 Qxe5 11. Ngf3 Qe7 12. g5 Ne4 13. Bxc6+ bxc6 {0-1 (31) Naiditsch,A (2705)-Inarkiev,E (2689) Riadh 2017}) 6... Qxd6 {[%emt 0:00:06]} 7. Bd3 {[%emt 0:00:08]} O-O {[%emt 0:01:25]} 8. f4 {[%emt 0:01:18]} b6 {[%emt 0:05:24]} 9. Qe2 {[%emt 0:03:56]} Bb7 {[%emt 0:01:39]} 10. Ngf3 {[%emt 0:00:35]} Nbd7 {[%emt 0:06:52]} 11. Ne5 {[%emt 0:07:03]} Ne4 {[%emt 0:04:50]} 12. O-O {[%emt 0:03:38]} Nxd2 $146 {[%emt 0:13:46]} ({Predecessor:} 12... Ndf6) 13. Qxd2 {[%emt 0:00:45]} f5 {[%emt 0:00:23]} 14. g4 {[%emt 0:07:00]} Qe7 {[%emt 0:04:26]} 15. Nxd7 {[%emt 0:14:21]} Qxd7 {[%emt 0:00:05]} 16. g5 {[%emt 0:00:27]} c4 {[%emt 0:12:12]} 17. Be2 {[%emt 0:04:56]} b5 {[%emt 0:01:30]} 18. Rf3 {[%emt 0:02:30]} a5 {[%emt 0:02:43]} 19. Rh3 {[%emt 0:02:53]} Qe7 {[%emt 0:02:15]} 20. Qe1 {[%emt 0:03:01]} b4 {[%emt 0:03:23]} 21. Qh4 {[%emt 0:00:19]} g6 {[%emt 0:00:28]} 22. Qe1 {[%emt 0:00:12]} Bc6 {[%emt 0:19:35]} 23. Rg3 {[%emt 0:07:18]} Rab8 {[%emt 0:00:56]} 24. h4 {[%emt 0:10:05]} a4 {[%emt 0:02:55]} 25. h5 {[%emt 0:00:59]} bxc3 {[%emt 0:01:53]} 26. bxc3 {[%emt 0:01:05]} Be8 {[%emt 0:02:25]} 27. hxg6 {[%emt 0:02:38]} (27. Rb1 $11 Rb7 28. hxg6 Bxg6 29. Rxb7 Qxb7 30. Rg2) 27... Bxg6 {[%emt 0:00:25]} 28. Qc1 {[%emt 0:02:10] [#]} a3 $1 {[%emt 0:01:01]} 29. Rb1 {[%emt 0:00:31]} Qa7 {[%emt 0:00:53]} 30. Rg2 {[%emt 0:01:03]} Rxb1 {[%emt 0:00:37]} 31. Qxb1 {[%emt 0:00:05]} Rb8 {[%emt 0:00:33]} 32. Qc1 {[%emt 0:01:05]} Rb2 {[%emt 0:00:26]} 33. Bd1 {[%emt 0:00:22]} Qb7 {[%emt 0:06:08]} 34. Rxb2 {[%emt 0:01:51]} Qxb2 {[%emt 0:00:57]} ({Of course not} 34... axb2 $6 35. Qb1 $11) 35. Qc2 $2 {[%emt 0:06:47] [#]} (35. Qxb2 axb2 36. Bc2) 35... Bh5 $1 {[%emt 0:01:23]} 36. Qa4 {[%emt 0:00:15]} Qc1 {[%emt 0:01:39]} (36... Qa1 $142 37. Kf2 Qxd1 38. Qxd1 Bxd1 39. Ke1 {[#]} Bb3 $1 {[%mdl 512]} 40. Kd2 Kg7 41. axb3 a2 42. bxc4 dxc4 43. d5 exd5 44. e4 dxe4 45. Ke3 a1=Q 46. Kd4 e3 $1 {[%mdl 576] Deflection, Decoy} 47. Kxe3 Qxc3+ 48. Ke2 Qh3 49. Kd2 Qd3+ 50. Ke1 c3 51. Kf2 c2 52. Kg2 c1=Q 53. Kh2 Qxf4+ 54. Kh1 Qdf1#) 37. Qa8+ {[%emt 0:06:55]} Kg7 {[%emt 0:00:15]} 38. Qb7+ {[%emt 0:00:12]} Bf7 {[%emt 0:00:54]} (38... Kg6 $142 39. Kf2 Qd2+ 40. Kg3 Qxd1 41. Qxh7+ Kxh7 42. g6+ Kxg6 43. Kg2 Qe2+ 44. Kg3 Bf3 45. Kh3 Qg2+ 46. Kh4 Qh2#) 39. Qe7 {[%emt 0:00:24]} Qxd1+ {[%emt 0:00:38]} 40. Kf2 {[%emt 0:00:00]} Qh5 {[%emt 0:00:00]} 41. Qf6+ {[%emt 0:04:26]} Kg8 {[%emt 0:01:57]} 42. Qd8+ {[%emt 0:01:07]} Be8 {[%emt 0:01:05]} 43. Qe7 {[%emt 0:00:09]} Qf7 {[%emt 0:05:31]} 44. Qxa3 {[%emt 0:00:06]} Qd7 {[%emt 0:00:59]} 45. Qb4 {[%emt 0:01:27]} Qa4 {[%emt 0:08:18]} 46. Qe7 {[%emt 0:01:45]} Qd7 {[%emt 0:01:10]} 47. Qf6 {[%emt 0:02:59]} Qd6 {[%emt 0:03:34]} 48. Kg3 {[%emt 0:00:46]} Bf7 {[%emt 0:01:08]} 49. a4 {[%emt 0:00:22] [#]} Qc7 $1 {[%emt 0:00:31]} 50. Kh4 {[%emt 0:01:47]} Qa5 {[%emt 0:02:42]} 51. g6 {[%emt 0:02:31]} hxg6 {[%emt 0:00:19]} 52. Kg5 {[%emt 0:00:06]} Qxa4 {[%emt 0:02:00]} 53. Kh6 {[%emt 0:10:42]} Kf8 {[%emt 0:00:11]} 54. Qd8+ {[%emt 0:00:04]} Qe8 {[%emt 0:02:16]} 55. Qd6+ {[%emt 0:05:54]} Qe7 {[%emt 0:02:39]} 0-1

[Event "ROU-ch Women 2019"]
[Site "Olanesti"]
[Date "2019.03.08"]
[Round "7.20"]
[White "Panainte, Andreea-Bianca"]
[Black "Cosman, Andreea-Marioara"]
[Result "0-1"]
[ECO "B22"]
[WhiteElo "1891"]
[BlackElo "2191"]
[Annotator "NA"]
[PlyCount "58"]
[EventDate "2019.03.02"]
[EventType "swiss"]
[EventCountry "ROU"]
[SourceTitle "playchess.com"]
[Source "ChessBase"]
[SourceQuality "1"]
[TimeControl "40/5400+30:1800+30"]

1. e4 {[%emt 0:02:21]} c5 {[%emt 0:00:00]} 2. c3 {[%emt 0:00:14]} d6 {[%emt 0:00:00]} 3. d4 {[%emt 0:00:05]} Nf6 {[%emt 0:00:00]} 4. Bd3 {[%emt 0:00:34]} g6 {[%emt 0:00:00]} 5. Ne2 {[%emt 0:01:56]} Bg7 {[%emt 0:00:25]} 6. O-O {[%emt 0:00:39]} O-O {[%emt 0:06:47]} 7. h3 {[%emt 0:04:53] B07: Pirc Defence: Miscellaneous Systems} e5 {[%emt 0:01:44]} (7... Nc6 8. Be3 cxd4 9. cxd4 Nb4 10. Nbc3 Nxd3 11. Qxd3 b6 12. d5 e5 13. dxe6 fxe6 14. Rfd1 Bb7 15. Qxd6 Qxd6 16. Rxd6 Nxe4 17. Rxe6 Nxc3 18. Nxc3 {½-½ (52) Nepomniachtchi,I (2632)-Smirin,I (2650) Netanya 2009}) 8. Be3 {[%emt 0:03:04]} b6 {[%emt 0:01:49]} 9. Nd2 {[%emt 0:03:28]} Bb7 $146 {[%emt 0:02:56]} ({Predecessor:} 9... Ba6 10. Bxa6 Nxa6 11. Ng3 Qe7 12. d5 Nc7 13. Bg5 h6 14. Bh4 Qd7 15. Bxf6 Bxf6 {1-0 (26) Petrovic,Z (2057)-Petrovic,S (1753) Belgrade 2017}) 10. f3 {[%emt 0:12:49]} exd4 {[%emt 0:05:00]} 11. cxd4 {[%emt 0:00:16]} Re8 {[%emt 0:00:14]} 12. a3 {[%emt 0:02:37]} Nc6 {[%emt 0:08:42]} 13. Bf2 {[%emt 0:04:51]} a6 {[%emt 0:11:06]} 14. Bc2 {[%emt 0:02:54]} Qe7 {[%emt 0:17:35]} ({Black should play} 14... cxd4 $15 15. Nxd4 d5) 15. Nc4 {[%emt 0:03:47]} b5 {[%emt 0:01:40]} 16. Nb6 {[%emt 0:00:08]} Rad8 {[%emt 0:00:16]} 17. Qe1 $2 {[%emt 0:07:15]} (17. d5 $1 $11 {and White stays safe.} Ne5 18. a4) 17... Qc7 {[%emt 0:12:44]} 18. dxc5 {[%emt 0:04:00]} dxc5 {[%emt 0:00:08]} 19. Bxc5 {[%emt 0:01:03]} Nb8 {[%emt 0:00:07]} 20. Qf2 $2 {[%emt 0:03:54]} (20. b4 $17 Nfd7 21. Nxd7 Nxd7 22. Rc1) 20... Nfd7 {[%emt 0:01:01]} 21. Be3 {[%emt 0:21:58]} Qxc2 {[%emt 0:02:04]} 22. Rac1 {[%emt 0:00:48]} Qxb2 {[%emt 0:03:07]} 23. Rc7 {[%emt 0:03:31]} Nxb6 {[%emt 0:04:03]} 24. Bxb6 {[%emt 0:00:14]} Rd2 {[%emt 0:03:12]} 25. Rxb7 {[%emt 0:00:35]} Rxe2 {[%emt 0:00:07]} 26. Qg3 {[%emt 0:00:03]} Be5 {[%emt 0:04:48]} 27. f4 {[%emt 0:02:12]} Bd4+ {[%emt 0:00:23]} 28. Kh1 {[%emt 0:00:09]} Qc3 $19 {[%emt 0:04:48]} 29. Qg5 {[%emt 0:01:55]} Re1 {[%emt 0:01:53]} 0-1

[Event "ROU-ch Women 2019"]
[Site "Olanesti"]
[Date "2019.03.09"]
[Round "8.16"]
[White "Aciu, Malina-Andreea"]
[Black "Sgircea, Silvia-Raluca"]
[Result "1-0"]
[ECO "B24"]
[WhiteElo "1980"]
[BlackElo "2252"]
[Annotator "NA"]
[PlyCount "77"]
[EventDate "2019.03.02"]
[EventType "swiss"]
[EventCountry "ROU"]
[SourceTitle "playchess.com"]
[Source "ChessBase"]
[SourceQuality "1"]
[TimeControl "40/5400+30:1800+30"]

1. e4 {[%emt 0:00:00]} c5 {[%emt 0:00:00]} 2. Nc3 {[%emt 0:00:00]} Nc6 {[%emt 0:00:00]} 3. Bb5 {[%emt 0:00:00]} Nd4 {[%emt 0:00:33]} 4. Bc4 {[%emt 0:00:07]} e6 {[%emt 0:00:26]} 5. Nge2 {[%emt 0:00:07]} Ne7 {[%emt 0:01:07]} 6. O-O {[%emt 0:01:07]} Nec6 {[%emt 0:05:34]} 7. d3 {[%emt 0:03:29]} Be7 {[%emt 0:00:23]} 8. Be3 {[%emt 0:03:31]} O-O {[%emt 0:00:29]} 9. f4 {[%emt 0:01:57]} d6 {[%emt 0:02:13]} 10. a4 {[%emt 0:09:22]} a6 {[%emt 0:08:29]} 11. Bf2 {[%emt 0:08:52]} Rb8 {[%emt 0:17:45]} 12. Nxd4 {[%emt 0:05:30]} Nxd4 {[%emt 0:00:22]} 13. Ne2 {[%emt 0:03:06]} d5 {[%emt 0:02:38]} 14. Ba2 {[%emt 0:01:44]} Nc6 {[%emt 0:00:49]} 15. Ng3 {[%emt 0:08:48]} dxe4 {[%emt 0:13:58]} 16. Nxe4 {[%emt 0:03:09]} b6 {[%emt 0:01:02]} 17. c3 {[%emt 0:04:26]} Rb7 {[%emt 0:10:53]} 18. Qf3 {[%emt 0:01:38]} Rd7 {[%emt 0:00:18]} 19. Rad1 {[%emt 0:00:50]} Bb7 {[%emt 0:00:27]} 20. Qe2 {[%emt 0:14:06]} Na5 {[%emt 0:04:06]} 21. d4 {[%emt 0:02:14]} c4 {[%emt 0:03:57]} 22. Ng3 {[%emt 0:07:05]} Bd5 {[%emt 0:03:43]} 23. f5 {[%emt 0:01:41]} Qa8 {[%emt 0:12:32]} 24. Be1 {[%emt 0:11:24]} Qc6 {[%emt 0:03:46]} 25. Bb1 {[%emt 0:02:41]} exf5 {[%emt 0:03:04]} 26. Nxf5 {[%emt 0:00:40]} Qe6 {[%emt 0:00:46]} 27. Qg4 {[%emt 0:01:07]} g6 {[%emt 0:01:51]} 28. Bh4 {[%emt 0:02:19]} Bxh4 {[%emt 0:00:14]} 29. Qxh4 {[%emt 0:00:43]} h5 {[%emt 0:02:21]} 30. Rde1 {[%emt 0:00:29]} Qc6 {[%emt 0:00:00]} 31. Ne7+ {[%emt 0:02:01]} Rxe7 {[%emt 0:00:02]} 32. Qxe7 {[%emt 0:00:03]} Bxg2 {[%emt 0:01:28]} 33. Rf6 {[%emt 0:00:41]} Qb7 {[%emt 0:00:02]} 34. Bxg6 {[%emt 0:00:55]} Qxe7 {[%emt 0:00:10]} 35. Rxe7 {[%emt 0:00:03]} Bd5 {[%emt 0:01:18]} 36. Bxh5 {[%emt 0:00:17]} Nc6 {[%emt 0:00:22]} 37. Bxf7+ {[%emt 0:01:19]} Kg7 {[%emt 0:00:45]} 38. Bxd5+ {[%emt 0:00:34]} Kxf6 {[%emt 0:00:02]} 39. Re6+ {[%emt 0:00:03]} 1-0

[Event "ROU-ch Women 2019"]
[Site "Olanesti"]
[Date "2019.03.09"]
[Round "8.17"]
[White "Lehaci, Miruna-Daria"]
[Black "Dragomirescu, Angela"]
[Result "1/2-1/2"]
[ECO "B08"]
[WhiteElo "2052"]
[BlackElo "2260"]
[Annotator "NA"]
[PlyCount "135"]
[EventDate "2019.03.02"]
[EventType "swiss"]
[EventCountry "ROU"]
[SourceTitle "playchess.com"]
[Source "ChessBase"]
[SourceQuality "1"]
[TimeControl "40/5400+30:1800+30"]

1. e4 {[%emt 0:00:00]} g6 {[%emt 0:02:38]} 2. d4 {[%emt 0:00:00]} Bg7 {[%emt 0:00:48]} 3. Nf3 {[%emt 0:00:07]} d6 {[%emt 0:00:21]} 4. Nc3 {[%emt 0:00:04]} Nf6 {[%emt 0:01:31]} 5. Be2 {[%emt 0:00:07]} O-O {[%emt 0:00:19]} 6. O-O {[%emt 0:00:03]} c6 {[%emt 0:02:11]} 7. a4 {[%emt 0:00:06]} Qc7 {[%emt 0:00:46]} 8. a5 {[%emt 0:01:18]} Nbd7 {[%emt 0:00:14]} 9. Be3 {[%emt 0:00:55]} e5 {[%emt 0:06:39]} 10. dxe5 {[%emt 0:00:06]} dxe5 {[%emt 0:00:07]} 11. h3 {[%emt 0:00:30]} Rd8 {[%emt 0:03:02]} 12. Qc1 {[%emt 0:00:28] B08: Pirc Defence: Classical System} Nf8 {[%emt 0:04:07]} 13. Rd1 {[%emt 0:04:28]} Rxd1+ {[%emt 0:00:41]} 14. Qxd1 {[%emt 0:00:05]} Ne6 {[%emt 0:01:21]} 15. Qd2 {[%emt 0:05:04]} Bf8 {[%emt 0:00:40]} 16. Ra4 $146 {[%emt 0:20:23]} ({Predecessor:} 16. Bc4 Bb4 17. Bxe6 Bxe6 18. Nb5 Qe7 19. c3 Nxe4 {0-1 (31) Diamant,A (2395)-Leitao,R (2601) Rio de Janeiro 2007}) 16... Nh5 {[%emt 0:29:34]} 17. Bc4 {[%emt 0:10:20]} Qd6 {[%emt 0:04:26]} 18. Qxd6 {[%emt 0:02:05]} Bxd6 {[%emt 0:00:02]} 19. Ra1 {[%emt 0:00:37]} Nf6 {[%emt 0:09:38]} 20. Ng5 {[%emt 0:18:21]} Nxg5 {[%emt 0:02:25]} 21. Bxg5 {[%emt 0:00:04]} Kg7 {[%emt 0:01:02]} 22. Be3 {[%emt 0:07:02]} Kf8 {[%emt 0:08:54]} 23. f3 {[%emt 0:05:58]} Ne8 {[%emt 0:00:57]} 24. Na4 {[%emt 0:01:54]} Ke7 {[%emt 0:01:43]} 25. c3 {[%emt 0:04:07]} Nc7 {[%emt 0:01:38]} 26. Rd1 {[%emt 0:01:03]} Ne6 {[%emt 0:09:35]} 27. Bf2 {[%emt 0:02:08]} f6 {[%emt 0:00:25]} 28. b4 {[%emt 0:08:04]} Bd7 {[%emt 0:00:32]} 29. Bb3 {[%emt 0:01:55]} Nf4 {[%emt 0:01:34]} 30. Kh2 {[%emt 0:02:54]} h5 {[%emt 0:02:40]} 31. Nb2 {[%emt 0:01:24]} Ne6 {[%emt 0:01:11]} 32. Nc4 {[%emt 0:00:56]} Bc7 {[%emt 0:00:08]} 33. Be3 {[%emt 0:01:05]} Be8 {[%emt 0:01:24]} 34. Nb2 {[%emt 0:01:04]} b6 {[%emt 0:00:48]} 35. Nc4 {[%emt 0:00:42]} b5 {[%emt 0:02:38]} 36. Nb2 {[%emt 0:00:02]} a6 {[%emt 0:00:34]} 37. Nd3 {[%emt 0:00:09]} Bf7 {[%emt 0:00:38]} 38. Nc5 {[%emt 0:00:30]} Bd6 {[%emt 0:00:34]} 39. Nb7 {[%emt 0:01:09]} Bc7 {[%emt 0:00:10]} 40. Nc5 {[%emt 0:00:00]} Bd6 {[%emt 0:00:00]} 41. Nb7 {[%emt 0:02:29]} Bc7 {[%emt 0:00:26]} 42. h4 {[%emt 0:08:49]} f5 {[%emt 0:20:49]} 43. Nc5 {[%emt 0:01:33]} f4 {[%emt 0:04:26]} 44. Rd7+ {[%emt 0:04:49]} Ke8 {[%emt 0:00:01]} 45. Bf2 {[%emt 0:05:11]} Nxc5 {[%emt 0:01:18]} 46. Rxf7 {[%emt 0:00:03]} Nxb3 {[%emt 0:00:27]} 47. Rxc7 {[%emt 0:00:03]} Rd8 {[%emt 0:02:38]} 48. g3 $2 {[%emt 0:06:03]} (48. Rxc6 $18 Nd2 49. Bg1 (49. Rxa6 Nf1+ 50. Kh3 Rd1 $16)) 48... Rd2 {[%emt 0:00:15]} 49. Kg1 {[%emt 0:00:04]} Nc1 {[%emt 0:03:59]} 50. gxf4 {[%emt 0:00:42]} Ne2+ {[%emt 0:00:41]} 51. Kf1 {[%emt 0:00:16]} Nxf4 {[%emt 0:00:28]} 52. Be3 {[%emt 0:00:54]} Rd3 {[%emt 0:00:50] [#]} 53. Bxf4 $1 {[%emt 0:02:56]} Rxf3+ {[%emt 0:00:02]} 54. Kg2 {[%emt 0:00:04]} Rxf4 {[%emt 0:00:07]} 55. Rxc6 {[%emt 0:00:14] Double Attack} Rxe4 {[%emt 0:01:46]} (55... Rxh4 $16 56. Rxa6 (56. Rxg6 Rxe4 57. Rxa6 Re2+ 58. Kf1 Re3 $16) 56... Rxe4) 56. Rxa6 {[%emt 0:00:05]} Rc4 {[%emt 0:00:38]} 57. Rxg6 {[%emt 0:01:03]} Rxc3 {[%emt 0:00:12]} 58. Re6+ {[%emt 0:00:55]} Kd7 {[%emt 0:00:05]} 59. Rxe5 {[%emt 0:00:04]} Kc6 {[%emt 0:00:59]} 60. Rxh5 {[%emt 0:00:14]} Rc4 {[%emt 0:00:47]} 61. Rc5+ $2 {[%emt 0:02:53]} (61. Rh6+ $18 Kd5 62. Rh8) 61... Rxc5 {[%emt 0:00:01]} 62. bxc5 {[%emt 0:00:04]} b4 {[%emt 0:00:20]} 63. h5 {[%emt 0:00:33]} b3 {[%emt 0:00:03]} 64. h6 {[%emt 0:00:03]} b2 {[%emt 0:00:02]} 65. h7 {[%emt 0:00:03]} b1=Q {[%emt 0:00:04]} 66. h8=Q {[%emt 0:00:03]} Qc2+ {[%emt 0:01:23]} 67. Kf3 {[%emt 0:00:06]} Qd3+ {[%emt 0:00:34]} 68. Kg2 $11 {[%emt 0:00:27]} 1/2-1/2

[Event "ROU-ch Women 2019"]
[Site "Olanesti"]
[Date "2019.03.09"]
[Round "8.18"]
[White "Peptan, Corina-Isabela"]
[Black "Obada, Ema"]
[Result "1-0"]
[ECO "A20"]
[WhiteElo "2374"]
[BlackElo "1846"]
[Annotator "NA"]
[PlyCount "117"]
[EventDate "2019.03.02"]
[EventType "swiss"]
[EventCountry "ROU"]
[SourceTitle "playchess.com"]
[Source "ChessBase"]
[SourceQuality "1"]
[TimeControl "40/5400+30:1800+30"]

1. c4 {[%emt 0:00:34]} e5 {[%emt 0:00:00]} 2. e3 {[%emt 0:00:17]} Nc6 {[%emt 0:00:00]} 3. Nc3 {[%emt 0:00:23]} Nf6 {[%emt 0:00:34]} 4. Qc2 {[%emt 0:02:14]} g6 {[%emt 0:01:10]} 5. a3 {[%emt 0:00:40]} Bg7 {[%emt 0:02:51]} 6. b4 {[%emt 0:00:26]} O-O {[%emt 0:00:50]} 7. Bb2 {[%emt 0:00:37]} d6 {[%emt 0:01:15]} 8. d3 {[%emt 0:14:15]} Ne8 {[%emt 0:06:02]} 9. h4 {[%emt 0:13:56]} h6 {[%emt 0:03:03]} 10. g3 {[%emt 0:09:26]} f5 {[%emt 0:07:49]} 11. Bg2 {[%emt 0:07:22]} Ne7 {[%emt 0:16:39]} 12. Nge2 {[%emt 0:04:35]} c6 {[%emt 0:01:31]} 13. Rd1 {[%emt 0:06:22]} Be6 {[%emt 0:03:45]} 14. O-O {[%emt 0:03:05]} Nc7 {[%emt 0:06:09]} 15. Nb1 {[%emt 0:05:33]} d5 {[%emt 0:04:02]} 16. f4 {[%emt 0:01:47]} exf4 {[%emt 0:05:37]} 17. Bxg7 {[%emt 0:00:47]} Kxg7 {[%emt 0:00:03]} 18. Qc3+ {[%emt 0:01:18]} Kh7 {[%emt 0:01:15]} 19. exf4 {[%emt 0:00:07]} Ng8 {[%emt 0:07:51]} 20. Nd4 {[%emt 0:02:53]} Nf6 {[%emt 0:03:47]} 21. Rfe1 {[%emt 0:00:20]} Qd7 {[%emt 0:02:48]} 22. c5 {[%emt 0:03:15]} Rae8 {[%emt 0:10:36]} 23. Nd2 Bg8 {[%emt 0:00:23]} 24. N2f3 {[%emt 0:01:07]} Ng4 {[%emt 0:00:35]} 25. Qd2 {[%emt 0:01:01]} Ne6 {[%emt 0:02:05]} 26. Nxe6 {[%emt 0:04:48]} Rxe6 {[%emt 0:01:32]} 27. Rxe6 {[%emt 0:02:15]} Bxe6 {[%emt 0:01:12]} 28. Re1 {[%emt 0:03:24]} d4 {[%emt 0:04:16]} 29. Qb2 {[%emt 0:00:17]} Rd8 {[%emt 0:00:46]} 30. Bh3 {[%emt 0:01:53]} Kg7 {[%emt 0:03:48]} 31. Qe2 {[%emt 0:03:29]} Bf7 {[%emt 0:02:20]} 32. Bxg4 {[%emt 0:00:21]} fxg4 {[%emt 0:00:02]} 33. Ne5 {[%emt 0:00:11]} Qf5 {[%emt 0:00:25]} 34. Qxg4 {[%emt 0:02:40]} h5 {[%emt 0:00:14]} 35. Qxf5 {[%emt 0:04:49]} gxf5 {[%emt 0:00:04]} 36. Nf3 {[%emt 0:00:19]} Kf6 {[%emt 0:00:33]} 37. Re2 {[%emt 0:00:24]} Rd5 {[%emt 0:01:01]} 38. Rb2 {[%emt 0:00:55]} a6 {[%emt 0:01:02]} 39. Kf2 {[%emt 0:00:07]} Rd8 {[%emt 0:00:29]} 40. Nd2 {[%emt 0:00:00]} Re8 {[%emt 0:00:00]} 41. Nf3 {[%emt 0:01:17]} Rd8 {[%emt 0:00:56]} 42. Re2 {[%emt 0:02:49]} Rd5 {[%emt 0:02:28]} 43. Re5 {[%emt 0:00:18]} Rd8 {[%emt 0:00:32]} 44. Ke2 {[%emt 0:01:24]} Bb3 {[%emt 0:02:42]} 45. Kd2 {[%emt 0:00:15]} Ba2 {[%emt 0:00:55]} 46. Kc2 {[%emt 0:01:31]} Bf7 {[%emt 0:00:06]} 47. Kb2 {[%emt 0:00:30]} Bg8 {[%emt 0:00:16]} 48. a4 {[%emt 0:01:28]} Bf7 {[%emt 0:00:18]} 49. Ka3 {[%emt 0:00:14]} Bg8 {[%emt 0:01:02]} 50. b5 {[%emt 0:00:26]} axb5 {[%emt 0:03:31]} 51. axb5 {[%emt 0:02:11]} cxb5 {[%emt 0:01:09]} 52. Kb4 {[%emt 0:00:08]} Bf7 {[%emt 0:00:33]} 53. Kxb5 {[%emt 0:01:13]} Be8+ {[%emt 0:06:59]} 54. Kb6 {[%emt 0:02:54]} Bc6 {[%emt 0:00:09]} 55. Ng5 {[%emt 0:00:10]} Ra8 {[%emt 0:01:19]} 56. Re6+ {[%emt 0:00:21]} Kg7 {[%emt 0:00:04]} 57. Rd6 {[%emt 0:00:43]} Ra2 {[%emt 0:02:21]} 58. Ne6+ {[%emt 0:00:11]} Kf7 {[%emt 0:00:51]} 59. Nxd4 {[%emt 0:00:10]} 1-0